bitfinex-derivatives/quotes_BTCF0:USTF0_20260221
["timestamp","ask_amount","ask_price","bid_price","bid_amount"]
[1771716820591,0.01468,68137.0,68131.0,0.24898565]
[1771716821588,0.014681,68135.0,68128.0,0.014682]
[1771716822083,0.01468,68136.0,68129.0,0.014682]
[1771716822281,0.014681,68135.0,68127.0,0.014682]
[1771716822688,0.014681,68134.0,68127.0,0.014682]
[1771716823082,0.014681,68132.0,68125.0,0.014683]
[1771716824084,0.014682,68131.0,68125.0,0.014683]
[1771716824291,0.014681,68132.0,68125.0,0.014683]
[1771716824292,0.014682,68130.0,68125.0,0.014683]
[1771716824793,0.014682,68127.0,68121.0,0.014684]
[1771716825084,0.00781835,68127.0,68122.0,0.014683]
[1771716825282,0.014682,68129.0,68122.0,0.014683]
[1771716825481,0.014683,68126.0,68122.0,0.014683]
[1771716825684,0.014682,68129.0,68122.0,0.014683]
[1771716825890,0.00770528,68127.0,68122.0,0.014683]
[1771716826088,0.00770885,68129.0,68122.0,0.014683]
[1771716826288,0.014684,68122.0,68115.0,0.014685]
[1771716827289,0.014684,68122.0,68117.0,0.014684]
[1771716828190,0.014684,68122.0,68117.0,0.029368]
[1771716828681,0.014684,68122.0,68118.0,0.014684]
[1771716829588,0.014683,68123.0,68118.0,0.014684]
[1771716833101,0.014683,68123.0,68119.0,0.014684]
[1771716833900,0.014683,68123.0,68118.0,0.014684]
[1771716834100,0.014683,68123.0,68119.0,0.014684]
[1771716835195,0.014683,68124.0,68119.0,0.014684]
[1771716836496,0.014682,68129.0,68124.0,0.014683]
[1771716838705,0.014682,68128.0,68124.0,0.014683]
[1771716839107,0.014682,68128.0,68122.0,0.014683]
[1771716839108,0.014682,68128.0,68123.0,0.014683]
[1771716840309,0.014682,68127.0,68122.0,0.014683]
[1771716840510,0.014683,68125.0,68120.0,0.014684]
[1771716841504,0.014683,68125.0,68120.0,0.029368]
[1771716843112,0.014683,68125.0,68121.0,0.014684]
[1771716843615,0.014683,68126.0,68121.0,0.014684]
[1771716844004,0.014684,68122.0,68117.0,0.014684]
[1771716844198,0.014684,68121.0,68114.0,0.25433789]
[1771716844404,0.014684,68122.0,68117.0,0.014684]
[1771716845108,0.014684,68122.0,68118.0,0.014684]
[1771716846805,0.014683,68123.0,68118.0,0.014684]
[1771716848811,0.014683,68125.0,68120.0,0.014684]
[1771716849114,0.014682,68128.0,68123.0,0.014683]
[1771716852219,0.014682,68127.0,68117.0,0.014684]
[1771716852426,0.014682,68127.0,68121.0,0.014684]
[1771716852725,0.014682,68127.0,68122.0,0.014683]
[1771716859245,0.014682,68128.0,68122.0,0.014683]
[1771716859839,0.014682,68128.0,68123.0,0.014683]
[1771716862541,0.07586066,68130.0,68124.0,0.014683]
[1771716862748,0.014682,68130.0,68124.0,0.014683]
[1771716862939,0.65443816,68163.0,68124.0,0.22270053]
[1771716862940,0.13936049,68147.0,68124.0,0.22270053]
[1771716863135,0.24233328,68149.0,68132.0,0.014681]
[1771716863136,0.01468,68139.0,68132.0,0.014681]
[1771716863334,0.01468,68139.0,68133.0,0.014681]
[1771716864742,0.01468,68139.0,68125.0,0.23738353]
[1771716864946,0.014681,68134.0,68126.0,0.014683]
[1771716865142,0.014681,68133.0,68127.0,0.014682]
[1771716865446,0.014681,68134.0,68127.0,0.014682]
[1771716866346,0.014681,68134.0,68128.0,0.014682]
[1771716869653,0.014681,68132.0,68125.0,0.014683]
[1771716870151,0.014681,68132.0,68126.0,0.014682]
[1771716870447,0.014681,68133.0,68127.0,0.014682]
[1771716872238,0.014678,68146.0,68121.0,0.22270053]
[1771716872440,0.01468,68138.0,68132.0,0.014681]
[1771716872644,0.01468,68138.0,68132.0,0.029362]
[1771716872841,0.01468,68138.0,68132.0,0.014681]
[1771716873256,0.06117866,68150.0,68134.0,0.014681]
[1771716873257,0.014679,68141.0,68134.0,0.014681]
[1771716873551,0.014679,68143.0,68136.0,0.02936]
[1771716873752,0.014678,68148.0,68141.0,0.014679]
[1771716874056,0.014678,68147.0,68141.0,0.014679]
[1771716874749,0.014678,68147.0,68140.0,0.01468]
[1771716875560,0.014679,68145.0,68139.0,0.01468]
[1771716875745,0.014679,68143.0,68136.0,0.01468]
[1771716875949,0.014679,68143.0,68136.0,0.02936]
[1771716877061,0.014679,68143.0,68136.0,0.01468]
[1771716877654,0.014679,68143.0,68137.0,0.01468]
[1771716879063,0.014679,68143.0,68136.0,0.01468]
[1771716880352,0.014678,68146.0,68137.0,0.01468]
[1771716880855,0.014679,68142.0,68135.0,0.014681]
[1771716881860,0.014679,68142.0,68135.0,0.029362]
[1771716882262,0.029358,68143.0,68136.0,0.01468]
[1771716882462,0.014679,68142.0,68136.0,0.01468]
[1771716885064,0.014679,68142.0,68136.0,0.01548]
[1771716885266,0.014679,68142.0,68136.0,0.01468]
[1771716888568,0.014679,68143.0,68136.0,0.01468]
[1771716888866,0.014678,68146.0,68138.0,0.01468]
[1771716889266,0.014678,68145.0,68138.0,0.01468]
[1771716889762,0.014679,68144.0,68138.0,0.01468]
[1771716889966,0.029358,68144.0,68137.0,0.01468]
[1771716890262,0.014679,68144.0,68137.0,0.01468]
[1771716890460,0.014679,68144.0,68138.0,0.01468]
[1771716890859,0.014678,68146.0,68138.0,0.01468]
[1771716891866,0.014679,68144.0,68138.0,0.01468]
[1771716893067,0.014679,68144.0,68137.0,0.01468]
[1771716893265,0.014679,68144.0,68138.0,0.01468]
[1771716893667,0.014675,68159.0,68140.0,0.21579652]
[1771716893862,0.014676,68157.0,68149.0,0.014677]
[1771716894062,0.014676,68156.0,68149.0,0.014677]
[1771716894257,0.014676,68156.0,68148.0,0.014678]
[1771716894464,0.014676,68155.0,68148.0,0.014678]
[1771716894664,0.014677,68154.0,68148.0,0.014678]
[1771716894864,0.014677,68154.0,68146.0,0.014678]
[1771716894865,0.014677,68154.0,68147.0,0.014678]
[1771716895564,0.029354,68154.0,68147.0,0.014678]
[1771716896464,0.014677,68154.0,68147.0,0.014678]
[1771716897367,0.014676,68156.0,68146.0,0.014678]
[1771716897368,0.014676,68155.0,68148.0,0.014678]
[1771716897568,0.014677,68154.0,68148.0,0.014678]
[1771716897769,0.014676,68155.0,68148.0,0.014678]
[1771716898267,0.014677,68154.0,68147.0,0.014678]
[1771716900369,0.014676,68156.0,68146.0,0.014678]
[1771716900370,0.014677,68152.0,68146.0,0.21579652]
[1771716900571,0.06117866,68156.0,68137.0,0.17619489]
[1771716900771,0.014679,68144.0,68137.0,0.01468]
[1771716900971,0.029358,68144.0,68137.0,0.01468]
[1771716901673,0.014679,68144.0,68137.0,0.01468]
[1771716901874,0.014679,68143.0,68137.0,0.01468]
[1771716902064,0.014679,68142.0,68136.0,0.21579652]
[1771716902270,0.01468,68140.0,68132.0,0.17619489]
[1771716902469,0.02936,68140.0,68133.0,0.014681]
[1771716902669,0.01468,68139.0,68133.0,0.014681]
[1771716902874,0.01468,68138.0,68133.0,0.014681]
[1771716904071,0.01468,68138.0,68132.0,0.014681]
[1771716904575,0.01468,68137.0,68132.0,0.014681]
[1771716905175,0.01468,68136.0,68132.0,0.014681]
[1771716905374,0.01468,68136.0,68131.0,0.014681]
[1771716906379,0.01468,68138.0,68133.0,0.014681]
[1771716909883,0.01468,68138.0,68133.0,0.029362]
[1771716910678,0.01468,68138.0,68133.0,0.014681]
[1771716913286,0.01468,68138.0,68133.0,0.029362]
[1771716913787,0.01468,68138.0,68133.0,0.014681]
[1771716914485,0.01468,68139.0,68134.0,0.014681]
[1771716915180,0.014679,68143.0,68137.0,0.01468]
[1771716915377,0.014679,68142.0,68138.0,0.01468]
[1771716915582,0.014679,68143.0,68138.0,0.01468]
[1771716916685,0.014679,68142.0,68138.0,0.01468]
[1771716920390,0.014679,68141.0,68137.0,0.01468]
[1771716921984,0.13504075,68159.0,68130.0,0.26433481]
[1771716921985,5e-08,68163.0,68162.0,0.014675]
[1771716922185,0.21037529,68163.0,68146.0,0.26433481]
[1771716922380,0.014678,68148.0,68140.0,0.26433481]
[1771716922690,0.014678,68148.0,68143.0,0.014679]
[1771716923081,0.014677,68154.0,68149.0,0.014678]
[1771716926894,0.014677,68154.0,68147.0,0.014678]
[1771716927081,0.014677,68153.0,68147.0,0.014678]
[1771716927894,0.014677,68154.0,68148.0,0.014678]
[1771716928096,0.014677,68154.0,68149.0,0.014678]
[1771716929889,0.014677,68152.0,68144.0,0.014679]
[1771716930085,0.014678,68150.0,68144.0,0.014679]
[1771716930597,0.014678,68149.0,68144.0,0.014679]
[1771716939508,0.014678,68148.0,68144.0,0.014679]
[1771716945506,0.014677,68153.0,68137.0,0.01468]
[1771716945507,0.014679,68143.0,68137.0,0.01468]
[1771716945709,0.014679,68144.0,68139.0,0.01468]
[1771716946408,0.014678,68147.0,68135.0,0.26433481]
[1771716946609,0.014678,68147.0,68141.0,0.014679]
[1771716947014,0.014678,68147.0,68142.0,0.014679]
[1771716947511,0.014678,68147.0,68142.0,7e-08]
[1771716948611,0.014678,68147.0,68142.0,0.01467907]
[1771716955925,0.029356,68147.0,68142.0,0.01467907]
[1771716956522,0.014678,68146.0,68142.0,0.01467907]
[1771716965634,0.014678,68147.0,68142.0,0.01467907]
[1771716967038,0.014678,68146.0,68142.0,0.01467907]
[1771716981543,0.014678,68147.0,68143.0,0.014679]
[1771716982039,0.014678,68147.0,68142.0,0.01467907]
[1771716983054,0.029356,68147.0,68142.0,0.01467907]
[1771716983343,0.014678,68147.0,68142.0,0.01467907]
[1771716986645,0.014678,68147.0,68142.0,0.19091133]
[1771716995451,0.014678,68147.0,68142.0,0.17623233]
[1771716996249,0.029356,68147.0,68142.0,0.17623233]
[1771716997156,0.014678,68146.0,68142.0,0.17623233]
[1771716997351,0.014678,68146.0,68142.0,7e-08]
[1771717016381,0.014679,68145.0,68142.0,7e-08]
[1771717020382,0.014679,68144.0,68142.0,7e-08]
[1771717020580,0.01468,68136.0,68129.0,0.26433481]
[1771717020782,0.01468,68137.0,68123.0,0.05038186]
[1771717020992,0.014682,68128.0,68123.0,0.05038186]
[1771717021186,0.00757344,68128.0,68123.0,0.05038186]
[1771717021578,0.014682,68129.0,68123.0,0.014683]
[1771717022185,0.014682,68129.0,68124.0,0.014683]
[1771717022684,0.014682,68129.0,68125.0,0.014683]
[1771717023582,0.014682,68129.0,68123.0,0.014683]
[1771717024683,0.014682,68128.0,68122.0,0.014683]
[1771717024986,0.014682,68128.0,68123.0,0.014683]
[1771717025383,0.014682,68127.0,68122.0,0.014683]
[1771717026280,0.014682,68127.0,68122.0,0.029366]
[1771717027184,0.014682,68130.0,68125.0,0.014683]
[1771717027382,0.014682,68129.0,68124.0,0.014683]
[1771717027986,0.014682,68128.0,68124.0,0.014683]
[1771717029589,0.014682,68128.0,68123.0,0.014683]
[1771717030589,0.014682,68128.0,68124.0,0.014683]
[1771717031190,0.014682,68128.0,68123.0,0.014683]
[1771717033387,0.014682,68127.0,68123.0,0.014683]
[1771717034186,0.014683,68125.0,68120.0,0.014684]
[1771717034391,0.014683,68123.0,68116.0,0.014685]
[1771717034586,0.014683,68124.0,68117.0,0.014684]
[1771717034793,0.014683,68123.0,68118.0,0.014684]
[1771717034992,0.014683,68123.0,68117.0,0.014684]
[1771717035492,0.014683,68123.0,68118.0,0.014684]
[1771717035987,0.014683,68124.0,68118.0,0.014684]
[1771717036194,0.0225319,68124.0,68118.0,0.029368]
[1771717036495,0.0225319,68124.0,68118.0,0.014684]
[1771717036886,0.014683,68123.0,68118.0,0.014684]
[1771717037193,0.00784042,68123.0,68118.0,0.014684]
[1771717037391,0.014683,68126.0,68118.0,0.014684]
[1771717037896,0.014685,68115.0,68110.0,0.014686]
[1771717038283,0.014685,68117.0,68110.0,0.014686]
[1771717038485,0.014685,68114.0,68110.0,0.014686]
[1771717038893,0.014685,68114.0,68109.0,0.014686]
[1771717041094,0.014685,68114.0,68110.0,0.014686]
[1771717042596,0.014685,68115.0,68110.0,0.014686]
[1771717044594,0.014685,68114.0,68110.0,0.014686]
[1771717045197,0.014685,68115.0,68110.0,0.014686]
[1771717045386,0.014685,68115.0,68110.0,0.029372]
[1771717046297,0.014685,68115.0,68110.0,0.014686]
[1771717046999,0.014684,68119.0,68114.0,0.014685]
[1771717048300,0.029368,68119.0,68114.0,0.014685]
[1771717049096,0.26101215,68118.0,68114.0,0.014685]
[1771717049401,0.029368,68119.0,68114.0,0.014685]
[1771717049591,0.26100844,68118.0,68114.0,0.014685]
[1771717049789,0.029368,68119.0,68114.0,0.014685]
[1771717050003,0.27501936,68118.0,68114.0,0.014685]
[1771717050204,0.014684,68118.0,68112.0,0.014686]
[1771717050400,0.014684,68118.0,68113.0,0.014685]
[1771717051800,0.014684,68118.0,68114.0,0.014685]
[1771717052405,0.014684,68119.0,68114.0,0.014685]
[1771717052605,0.26006142,68118.0,68114.0,0.014685]
[1771717052901,0.014684,68119.0,68114.0,0.014685]
[1771717053094,0.26006375,68118.0,68114.0,0.014685]
[1771717053298,0.014684,68119.0,68114.0,0.014685]
[1771717053498,0.25948079,68118.0,68114.0,0.014685]
[1771717053798,0.014684,68118.0,68113.0,0.014685]
[1771717053998,0.014684,68118.0,68112.0,0.014686]
[1771717054409,0.014684,68118.0,68112.0,0.014685]
[1771717055608,0.014684,68118.0,68113.0,0.014685]
[1771717056107,0.014684,68120.0,68113.0,0.014685]
[1771717056408,0.27418963,68119.0,68113.0,0.014685]
[1771717056608,0.25950563,68118.0,68113.0,0.014685]
[1771717056810,0.014684,68119.0,68113.0,0.014685]
[1771717057002,0.27418949,68118.0,68113.0,0.014685]
[1771717057205,0.014684,68118.0,68113.0,0.014685]
[1771717059307,0.014683,68122.0,68114.0,0.014685]
[1771717059610,0.24295736,68137.0,68121.0,0.014683]
[1771717059811,0.014681,68135.0,68121.0,0.014683]
[1771717060105,0.40905971,68145.0,68126.0,0.014683]
[1771717060106,0.01468,68139.0,68126.0,0.014683]
[1771717060307,0.014679,68143.0,68123.0,0.014683]
[1771717060614,0.24295736,68145.0,68121.0,0.014684]
[1771717060615,0.014681,68133.0,68127.0,0.014682]
[1771717060910,0.014681,68133.0,68128.0,0.014682]
[1771717063311,0.014679,68142.0,68128.0,0.014682]
[1771717063909,0.014681,68133.0,68128.0,0.014682]
[1771717064112,0.014681,68135.0,68128.0,0.014682]
[1771717064505,0.014681,68133.0,68128.0,0.014682]
[1771717064814,0.01468,68137.0,68128.0,0.014682]
[1771717065009,0.014681,68133.0,68128.0,0.014682]
[1771717065213,0.01468,68137.0,68128.0,0.014682]
[1771717065514,0.01468,68136.0,68128.0,0.014682]
[1771717065714,0.01468,68137.0,68130.0,0.014682]
[1771717066310,0.014681,68135.0,68130.0,0.014682]
[1771717067115,0.014681,68136.0,68130.0,0.014682]
[1771717067304,0.014681,68135.0,68130.0,0.014682]
[1771717067707,0.014681,68135.0,68129.0,0.014682]
[1771717068010,0.014681,68134.0,68128.0,0.014682]
[1771717068407,0.014681,68134.0,68129.0,0.014682]
[1771717068605,0.02936,68138.0,68132.0,0.014681]
[1771717068913,0.01468,68136.0,68131.0,0.014681]
[1771717069315,0.01468,68138.0,68130.0,0.014682]
[1771717069511,0.014681,68136.0,68131.0,0.014681]
[1771717069713,0.014681,68136.0,68129.0,0.014682]
[1771717069714,0.014681,68135.0,68130.0,0.014682]
[1771717069909,0.014681,68134.0,68127.0,0.014682]
[1771717071012,0.014681,68133.0,68127.0,0.014682]
[1771717071716,0.014681,68133.0,68127.0,0.029364]
[1771717071916,0.014681,68133.0,68127.0,0.014682]
[1771717073009,0.014681,68133.0,68128.0,0.014682]
[1771717073413,0.014681,68133.0,68127.0,0.014682]
[1771717075217,0.014681,68132.0,68127.0,0.014682]
[1771717076415,0.014681,68132.0,68127.0,0.029364]
[1771717076617,0.014681,68132.0,68127.0,0.014682]
[1771717078117,0.014681,68132.0,68127.0,0.029364]
[1771717078419,0.014681,68132.0,68127.0,0.014682]
[1771717084721,0.014681,68133.0,68127.0,0.014682]
[1771717085220,0.014681,68132.0,68127.0,0.014682]
[1771717096836,0.014681,68132.0,68126.0,0.014683]
[1771717098142,0.014681,68134.0,68123.0,0.014683]
[1771717098344,0.014681,68133.0,68127.0,0.014682]
[1771717101050,0.014681,68133.0,68127.0,0.015562]
[1771717101238,0.014681,68133.0,68127.0,0.014682]
[1771717101840,0.014681,68134.0,68127.0,0.014682]
[1771717102344,0.014681,68133.0,68127.0,0.014682]
[1771717105249,0.014681,68132.0,68127.0,0.014682]
[1771717106345,0.24295736,68145.0,68121.0,0.014684]
[1771717106544,0.01468,68140.0,68134.0,0.014681]
[1771717106756,0.2531711,68139.0,68133.0,0.014681]
[1771717106948,0.2384911,68138.0,68133.0,0.014681]
[1771717113654,0.2531711,68138.0,68133.0,0.014681]
[1771717113949,0.01468,68139.0,68133.0,0.014681]
[1771717119061,0.01468,68139.0,68133.0,0.015561]
[1771717119252,0.01468,68139.0,68133.0,0.014681]
[1771717121363,0.014679,68143.0,68133.0,0.014681]
[1771717121564,0.23585314,68142.0,68133.0,0.014681]
[1771717121761,0.01468,68138.0,68132.0,0.014681]
[1771717121966,0.014681,68136.0,68129.0,0.014682]
[1771717122166,0.014681,68134.0,68128.0,0.014682]
[1771717123761,0.25355206,68135.0,68129.0,0.014682]
[1771717124267,0.25355206,68135.0,68128.0,0.014682]
[1771717124567,0.25355206,68135.0,68129.0,0.014682]
[1771717124764,0.25355206,68135.0,68126.0,0.014682]
[1771717125062,0.25355206,68135.0,68128.0,0.014682]
[1771717126671,0.25355206,68135.0,68128.0,0.029364]
[1771717128172,0.25355206,68135.0,68128.0,0.014682]
[1771717128770,0.25355206,68135.0,68128.0,0.029364]
[1771717129767,0.25355206,68135.0,68129.0,0.014682]
[1771717131268,0.25355206,68135.0,68128.0,0.014682]
[1771717131669,0.25355206,68135.0,68129.0,0.014682]
[1771717131868,0.23887106,68135.0,68128.0,0.014682]
[1771717132478,0.23887106,68135.0,68131.0,0.014681]
[1771717132673,0.23887106,68135.0,68130.0,0.014682]
[1771717132979,0.23887106,68135.0,68131.0,0.014681]
[1771717133181,0.01468,68140.0,68133.0,0.014681]
[1771717133375,0.014679,68141.0,68132.0,0.014681]
[1771717134079,0.014679,68141.0,68134.0,0.014681]
[1771717136482,0.029359,68141.0,68134.0,0.014681]
[1771717136682,0.014679,68141.0,68134.0,0.014681]
[1771717136886,0.01468,68140.0,68133.0,0.014681]
[1771717142686,0.01468,68140.0,68134.0,0.014681]
[1771717143288,0.014679,68141.0,68134.0,0.014681]
[1771717144382,0.014679,68141.0,68133.0,0.014681]
[1771717145089,0.014679,68141.0,68134.0,0.014681]
[1771717146191,0.029359,68141.0,68134.0,0.014681]
[1771717147393,0.014679,68141.0,68134.0,0.014681]
[1771717147991,0.014679,68141.0,68132.0,0.014681]
[1771717148392,0.029359,68141.0,68133.0,0.014681]
[1771717149480,0.014679,68141.0,68133.0,0.014681]
[1771717149992,0.029359,68141.0,68133.0,0.014681]
[1771717150389,0.014679,68142.0,68130.0,0.07583848]
[1771717150590,0.01468,68138.0,68131.0,0.014681]
[1771717155490,0.01468,68138.0,68132.0,0.014681]
[1771717155690,0.01468,68139.0,68132.0,0.014681]
[1771717157096,0.01468,68140.0,68132.0,0.014681]
[1771717157301,0.221566,68150.0,68130.0,0.01959767]
[1771717157490,0.014678,68147.0,68140.0,0.01468]
[1771717157690,0.23195604,68146.0,68141.0,0.014679]
[1771717157891,0.014677,68150.0,68142.0,0.014679]
[1771717158201,0.23195085,68149.0,68143.0,0.014679]
[1771717158399,0.23195085,68148.0,68143.0,0.014679]
[1771717158599,0.014677,68150.0,68143.0,0.014679]
[1771717158800,0.22701913,68149.0,68143.0,0.014679]
[1771717159000,0.014677,68150.0,68143.0,0.014679]
[1771717159202,0.22701913,68149.0,68143.0,0.014679]
[1771717159501,0.014677,68150.0,68143.0,0.014679]
[1771717159699,0.22697149,68149.0,68143.0,0.014679]
[1771717159896,0.014677,68150.0,68143.0,0.014679]
[1771717160097,0.2269708,68149.0,68143.0,0.014679]
[1771717160294,0.014678,68149.0,68142.0,0.014679]
[1771717168911,0.014678,68148.0,68141.0,0.014679]
[1771717170411,0.014678,68147.0,68139.0,0.01468]
[1771717170710,0.014679,68145.0,68137.0,0.01468]
[1771717170909,0.014679,68144.0,68137.0,0.01468]
[1771717171305,0.014678,68146.0,68137.0,0.01468]
[1771717172010,0.014678,68145.0,68138.0,0.01468]
[1771717177418,0.029357,68145.0,68138.0,0.01468]
[1771717179520,0.014678,68145.0,68138.0,0.01468]
[1771717179916,0.014678,68145.0,68136.0,0.01468]
[1771717180220,0.014679,68144.0,68137.0,0.01468]
[1771717191929,0.014676,68155.0,68144.0,0.014679]
[1771717192128,0.22384774,68154.0,68149.0,0.014677]
[1771717192433,0.014676,68157.0,68149.0,0.014677]
[1771717192733,0.014676,68156.0,68149.0,0.014677]
[1771717193823,0.014675,68162.0,68154.0,0.014677]
[1771717194023,0.014675,68161.0,68154.0,0.014677]
[1771717194225,0.014675,68162.0,68154.0,0.014677]
[1771717194424,0.01467505,68163.0,68154.0,0.014677]
[1771717194620,0.014675,68162.0,68154.0,0.014677]
[1771717195237,0.014675,68161.0,68154.0,0.014677]
[1771717197233,0.014675,68162.0,68154.0,0.014677]
[1771717197831,0.014675,68162.0,68155.0,0.014676]
[1771717198633,5e-08,68163.0,68150.0,0.014677]
[1771717198835,5e-08,68163.0,68158.0,0.014676]
[1771717199027,5e-08,68163.0,68156.0,0.014676]
[1771717199227,0.01467505,68163.0,68156.0,0.014676]
[1771717199431,0.01467505,68163.0,68155.0,0.014676]
[1771717199727,0.01467505,68163.0,68140.0,0.12313667]
[1771717199728,5e-08,68163.0,68158.0,0.014676]
[1771717200133,0.014677,68154.0,68142.0,0.014679]
[1771717200323,0.014678,68147.0,68139.0,0.01468]
[1771717200628,0.014678,68149.0,68139.0,0.01468]
[1771717200629,0.014678,68148.0,68140.0,0.014679]
[1771717200835,0.014678,68148.0,68140.0,0.029358]
[1771717201031,0.014678,68147.0,68140.0,0.014679]
[1771717201232,0.014678,68146.0,68138.0,0.01468]
[1771717201434,0.014679,68145.0,68137.0,0.01468]
[1771717201630,0.014679,68145.0,68119.0,0.014884]
[1771717201631,0.226994,68140.0,68130.0,0.014682]
[1771717201831,0.01468,68137.0,68125.0,0.014683]
[1771717202132,0.241674,68139.0,68127.0,0.014682]
[1771717202332,0.01468,68137.0,68129.0,0.014682]
[1771717202529,0.01468,68136.0,68129.0,0.014682]
[1771717202725,0.01468,68136.0,68127.0,0.014682]
[1771717202928,0.01468,68136.0,68128.0,0.014682]
[1771717203229,0.01468,68136.0,68127.0,0.014682]
[1771717203626,0.01468,68137.0,68129.0,0.014682]
[1771717203832,0.01468,68137.0,68130.0,0.001]
[1771717204328,0.01468,68137.0,68130.0,0.015682]
[1771717204524,0.01468,68137.0,68130.0,0.014682]
[1771717204936,0.01468,68137.0,68129.0,0.014682]
[1771717206131,0.01468,68136.0,68129.0,0.014682]
[1771717206333,0.01468,68136.0,68128.0,0.014682]
[1771717206740,0.01468,68137.0,68129.0,0.014682]
[1771717207440,0.241674,68138.0,68130.0,0.014682]
[1771717209039,0.01468,68136.0,68128.0,0.014682]
[1771717209241,0.226994,68138.0,68129.0,0.014682]
[1771717209440,0.01468,68137.0,68130.0,0.014682]
[1771717209838,0.241674,68138.0,68130.0,0.014682]
[1771717210041,0.01468,68137.0,68130.0,0.014682]
[1771717210441,0.241674,68138.0,68130.0,0.014682]
[1771717210640,0.241674,68138.0,68129.0,0.014682]
[1771717210641,0.01468,68137.0,68129.0,0.014682]
[1771717211550,0.241674,68138.0,68130.0,0.014682]
[1771717214353,0.226994,68138.0,68131.0,0.014682]
[1771717214851,0.241674,68138.0,68130.0,0.014682]
[1771717215150,0.241674,68138.0,68130.0,0.029364]
[1771717215349,0.226994,68138.0,68131.0,0.014681]
[1771717215868,0.226994,68138.0,68132.0,0.014681]
[1771717217757,0.226994,68138.0,68131.0,0.014681]
[1771717217956,0.01468,68137.0,68130.0,0.014682]
[1771717218454,0.226994,68138.0,68131.0,0.014681]
[1771717218864,0.226994,68138.0,68132.0,0.014681]
[1771717220169,0.226994,68138.0,68131.0,0.014681]
[1771717220369,0.241674,68138.0,68130.0,0.029364]
[1771717220667,0.241674,68138.0,68131.0,0.014681]
[1771717222267,0.226994,68138.0,68131.0,0.014681]
[1771717222458,0.226994,68138.0,68131.0,0.029362]
[1771717223969,0.226994,68138.0,68132.0,0.014681]
[1771717225656,0.226994,68138.0,68131.0,0.014681]
[1771717226264,0.226994,68138.0,68132.0,0.014681]
[1771717227161,0.226994,68138.0,68131.0,0.014681]
[1771717228060,0.226994,68138.0,68132.0,0.014681]
[1771717228962,0.23016697,68131.0,68113.0,0.27168982]
[1771717229166,0.23016697,68131.0,68125.0,0.029366]
[1771717229366,0.23016697,68131.0,68125.0,0.014683]
[1771717234777,0.23016697,68131.0,68123.0,0.014683]
[1771717234978,0.23016697,68131.0,68125.0,0.014683]
[1771717235878,0.23016697,68131.0,68123.0,0.014683]
[1771717236576,0.23016697,68131.0,68125.0,0.014683]
[1771717237676,0.24484897,68131.0,68121.0,0.014684]
[1771717237981,0.24484897,68131.0,68120.0,0.06114972]
[1771717238277,0.24484897,68131.0,68122.0,0.014683]
[1771717238482,0.24484897,68131.0,68123.0,0.014683]
[1771717246688,0.23016697,68131.0,68123.0,0.014683]
[1771717250092,0.23016697,68131.0,68123.0,0.029366]
[1771717250684,0.23016697,68131.0,68124.0,0.014683]
[1771717251691,0.23016697,68131.0,68112.0,0.014685]
[1771717251692,0.23016697,68131.0,68104.0,0.55000832]
[1771717251889,0.21025444,68121.0,68109.0,0.014686]
[1771717252095,0.21025444,68121.0,68112.0,0.014686]
[1771717252387,0.21025444,68121.0,68113.0,0.014685]
[1771717254093,0.21025444,68121.0,68115.0,0.00088]
[1771717254394,0.22493844,68121.0,68112.0,0.014686]
[1771717254594,0.22493844,68121.0,68113.0,0.014685]
[1771717255499,0.21025444,68121.0,68113.0,0.014685]
[1771717256191,0.22493844,68120.0,68102.0,0.014688]
[1771717256389,0.22493844,68118.0,68102.0,0.014688]
[1771717256892,0.22493844,68118.0,68109.0,0.014686]
[1771717257396,0.22493844,68118.0,68108.0,0.014686]
[1771717257895,0.22493844,68118.0,68109.0,0.014686]
[1771717259996,0.21025444,68116.0,68104.0,0.014687]
[1771717260189,0.21025444,68116.0,68105.0,0.014687]
[1771717261097,0.21025444,68116.0,68109.0,0.014686]
[1771717261288,0.21025444,68116.0,68107.0,0.014687]
[1771717261592,0.014683,68126.0,68115.0,0.014685]
[1771717261793,0.014683,68125.0,68115.0,0.014685]
[1771717262298,0.014683,68124.0,68115.0,0.014685]
[1771717263585,0.014684,68121.0,68110.0,0.07583572]
[1771717263896,0.014683,68124.0,68114.0,0.014685]
[1771717264497,0.014683,68123.0,68114.0,0.014685]
[1771717266097,0.014683,68123.0,68117.0,0.00084]
[1771717266298,0.014683,68123.0,68114.0,0.014685]
[1771717270500,0.014683,68122.0,68113.0,0.014685]
[1771717273201,0.014683,68122.0,68114.0,0.014685]
[1771717278011,0.014683,68123.0,68114.0,0.014685]
[1771717281108,0.014684,68122.0,68113.0,0.014685]
[1771717282307,0.014684,68122.0,68114.0,0.014685]
[1771717282710,0.014683,68123.0,68114.0,0.014685]
[1771717283616,0.014683,68122.0,68113.0,0.014685]
[1771717284515,0.014683,68122.0,68114.0,0.014685]
[1771717290217,0.014683,68123.0,68114.0,0.014685]
[1771717292518,0.17230122,68140.0,68119.0,0.014684]
[1771717292519,0.014682,68128.0,68119.0,0.014684]
[1771717294918,0.029364,68128.0,68119.0,0.014684]
[1771717295120,0.014682,68128.0,68119.0,0.014684]
[1771717295618,0.014682,68128.0,68120.0,0.014684]
[1771717296222,0.014682,68128.0,68120.0,0.029368]
[1771717296921,0.014682,68128.0,68120.0,0.014684]
[1771717301229,0.014682,68128.0,68121.0,0.014684]
[1771717301525,0.014681,68135.0,68127.0,0.014682]
[1771717301731,0.23466343,68134.0,68127.0,0.014682]
[1771717301938,0.21998243,68133.0,68127.0,0.014682]
[1771717302141,0.014681,68134.0,68127.0,0.014682]